Cogmind - Beta 13 @@@ ROGUE MODE // 2024.05.11 @ 12:35:25 Player: Exceptionally Mediocre Result: Destroyed by D-53 Grenadier with Mini Grenade Launcher Performance ------------- Evolutions (0) 0 Regions Visited (4) 800 Robots Destroyed (18) 90 Value Destroyed (294) 294 Prototype IDs (23) 460 Alien Tech Used (0) 0 Bonus (293) 293 TOTAL SCORE: 1937 Bonus ------- Aligned with FarCom 300 Friendly Fire -7 Cogmind --------- Core Integrity 0/250 Matter 75/300 Energy 18/100 System Corruption 0% Temperature Cool (0) Movement Core (50) Location -9/Mines Parts ------- > --- POWER (1) -------- (None) > --- PROPULSION (2) --- (None) > --- UTILITY (2) ------ Structural Scanner > --- WEAPON (2) ------- Hammer > --- INVENTORY (5) ---- Heat Sink Humpback Cloak of Protection Peak State ------------ > --- POWER ------------ Light Nuclear Core > --- PROPULSION ------- Light Treads Light Treads > --- UTILITY ---------- High-capacity Storage Unit Structural Scanner > --- WEAPON ----------- Shotgun Shotgun > --- INVENTORY -------- Light Treads Light Treads Light Treads Heat Sink Heat Sink Humpback Humpback Cloak of Protection Weapon Shielding Hacking Suite Particle Gun Particle Gun Improved Light Cannon Improved Light Cannon Grenade Launcher Hammer Hammer [Rating: 14] Favorites ----------- Power Light Ion Engine Engine Light Ion Engine Power Core Light Nuclear Core Propulsion Light Treads Treads Light Treads Utility Structural Scanner Device Structural Scanner Storage High-capacity Storage Unit Weapon Shotgun Energy Gun Particle Gun Ballistic Gun Shotgun Ballistic Cannon Improved Light Cannon Launcher Grenade Launcher Impact Weapon Hammer Build | -11 -10 -10 -10 -9 ------- Run | Yrd Mat Min Exi Min Slots Evolved . | . . . . . Power . | . . . . . Propulsion . | . . . . . Utility . | . . . . . Weapon . | . . . . . Parts Attached 26 | 6 11 . . 9 Power 3 | 1 1 . . 1 Engine 2 | 1 1 . . . Core 1 | . . . . 1 Reactor . | . . . . . Propulsion 6 | 2 2 . . 2 Treads 6 | 2 2 . . 2 Leg . | . . . . . Wheel . | . . . . . Hover . | . . . . . Flight . | . . . . . Utility 4 | 1 3 . . . Device 1 | . 1 . . . Storage 3 | 1 2 . . . Processor . | . . . . . Hackware . | . . . . . Protection . | . . . . . Artifact . | . . . . . Weapon 13 | 2 5 . . 6 Energy Gun 3 | 1 1 . . 1 Energy Cannon . | . . . . . Ballistic Gun 5 | 1 3 . . 1 Ballistic Cannon 2 | . . . . 2 Launcher 2 | . 1 . . 1 Special Weapon . | . . . . . Impact Weapon 1 | . . . . 1 Slashing Weapon . | . . . . . Piercing Weapon . | . . . . . Special Melee Weapon . | . . . . . Unidentified Prototypes . | . . . . . Parts Lost 13 | . 2 . . 11 Power 3 | . 1 . . 2 Propulsion 5 | . 1 . . 4 Utility . | . . . . . Weapon 5 | . . . . 5 Highest Loss Streak 9 | . 1 . . 9 To Critical Strikes . | . . . . . Average Slot Usage (%) 92 | . 88 100 100 75 Engine 13 | . 14 14 14 3 Treads 27 | . 27 28 28 20 Device 8 | . 4 14 14 14 Storage 13 | . 14 14 14 12 Energy Gun 5 | . 9 . . . Ballistic Gun 22 | . 18 28 28 15 Naked Turns . | . . . . . Heaviest Build 50 | 10 50 50 50 50 Greatest Support 40 | 40 40 40 40 40 Greatest Overweight (x) 1 | 1 1 1 1 1 Average Overweight (x) . | . . 1 1 . Largest Inventory Capacity 20 | 8 20 20 20 20 Average Capacity 16 | 7 13 20 20 19 Most Carried 20 | 2 19 19 20 20 Average Carried 14 | 1 12 19 19 17 Final Capacity 20 | 8 20 20 20 5 Final Carried 20 | 2 19 19 20 4 Class Distribution -------------------- 100% | Mutant Dominant Class ---------------- Mutant | -10/Materials Mutant | -10/Mines Mutant | -10/Exiles Mutant | -9/Mines Resources | -11 -10 -10 -10 -9 ----------- Run | Yrd Mat Min Exi Min Matter Collected 484 | 204 280 . . . Remotely . | . . . . . Salvage Created 486 | . 408 . . 78 Parts 36 | . 36 . . . Haulers Intercepted 2 | . 2 . . . Recyclers Shooed 2 | . 1 . . 1 Parts Field Recycled . | . . . . . Retrieved Matter . | . . . . . Parts Self-Destructed . | . . . . . Prevented . | . . . . . Kills | -11 -10 -10 -10 -9 ------- Run | Yrd Mat Min Exi Min Combat Hostiles Destroyed 20 | . 11 . . 9 Guns 17 | . 8 . . 9 AOE 3 | . 3 . . . Classes Destroyed 7 | . 6 . . 1 Builder 3 | . 3 . . . Hauler 2 | . 2 . . . Operator 1 | . 1 . . . Watcher 1 | . 1 . . . Swarmer 6 | . 6 . . . Grunt 5 | . 5 . . . Assembled 9 | . . . . 9 Best Kill Streak 9 | . 3 . . 9 Combat Bots Only 9 | . 3 . . 9 Max Kills in Single Turn 3 | . 3 . . 2 Gunslinging 1 | . . . . 1 Exploded 3 | . 3 . . . Melee . | . . . . . Uniques/NPCs Destroyed . | . . . . . Combat | -11 -10 -10 -10 -9 -------- Run | Yrd Mat Min Exi Min Hostile Shots Fired 138 | . 70 . . 68 Missed 30 | . 16 . . 14 Damage Taken 1939 | . 524 . . 1415 Core 253 | . 38 . . 215 Absorbed by Shields . | . . . . . Core Remaining (%) 100 | 100 . . . . Volleys Fired 83 | 3 57 . . 23 Largest 2 | 2 2 . . 2 Hottest 85 | 60 85 . . 78 Shots Fired 158 | 6 110 . . 42 Gun 145 | 6 108 . . 31 Cannon 9 | . . . . 9 Launcher 4 | . 2 . . 2 Special . | . . . . . Kinetic 106 | 3 63 . . 40 Thermal 48 | 3 45 . . . Explosive 4 | . 2 . . 2 Electromagnetic . | . . . . . Robot Hit Streak 15 | 3 15 . . 7 Robot Miss Streak 6 | 3 5 . . 6 Penetration Max . | . . . . . Secondary Targets 4 | . . . . 4 Max Gunslinging Chain 1 | . . . . 1 Shots Hit Robots 101 | 3 71 . . 27 Core Hits 52 | 1 30 . . 21 Critical Kills . | . . . . . Critical Parts Destroyed . | . . . . . Critical Strikes 1 | . 1 . . . Burn 1 | . 1 . . . Melee Attacks . | . . . . . Impact . | . . . . . Slashing . | . . . . . Piercing . | . . . . . Sneak Attacks . | . . . . . Combat Hostiles . | . . . . . Follow-up Attacks . | . . . . . Damage Inflicted 1680 | 38 1106 . . 536 Guns 1296 | 38 888 . . 370 Cannons 102 | . . . . 102 Explosions 282 | . 218 . . 64 Melee . | . . . . . Ramming . | . . . . . Kinetic 894 | 15 407 . . 472 Thermal 504 | 23 481 . . . Explosive 282 | . 218 . . 64 Electromagnetic . | . . . . . Impact . | . . . . . Slashing . | . . . . . Piercing . | . . . . . Highest Corruption . | . . . . . Average Corruption . | . . . . . Corruption Purged . | . . . . . Corruption Blocked . | . . . . . Overload Shots . | . . . . . Overflow Damage 17 | . 5 . . 12 Projectiles . | . . . . . Explosions 17 | . 5 . . 12 Melee . | . . . . . Knockbacks 3 | . . . . 3 Impact . | . . . . . Kinetic 3 | . . . . 3 Secondary . | . . . . . Self-Inflicted Damage . | . . . . . Shots . | . . . . . Rammed . | . . . . . Targets Rammed . | . . . . . Kicked . | . . . . . Crushed . | . . . . . Highest Temperature 238 | 20 238 . . 12 Average Temperature 75 | 15 82 . . 6 Received Heat Transfer 174 | . 174 . . . Siege Activations . | . . . . . Robots Corrupted . | . . . . . Combat Hostiles . | . . . . . Parts Fried . | . . . . . Impact Corruptions . | . . . . . Robots Melted . | . . . . . Combat Hostiles . | . . . . . Parts Melted 3 | . 3 . . . Heat Transferred 1247 | 50 1197 . . . Parts Sabotaged . | . . . . . Parts Stolen . | . . . . . Parts Stripped . | . . . . . Power Chain Reactions . | . . . . . Alert | -11 -10 -10 -10 -9 ------- Run | Yrd Mat Min Exi Min Peak Influence 244 | . 244 16 . 15 Initial 16 | . . 16 . . Average 103 | . 126 16 . 1 Maximum Alert Level 1 | . 1 . . . Low Security (%) 87 | 100 84 100 . 100 Level 1 12 | . 15 . . . Level 2 . | . . . . . Level 3 . | . . . . . Level 4 . | . . . . . Level 5 . | . . . . . High Security . | . . . . . Max Security . | . . . . . Squads Dispatched 2 | . 2 . . . Investigation . | . . . . . Extermination . | . . . . . Reinforcement 2 | . 2 . . . Assault . | . . . . . Garrison . | . . . . . Intercept . | . . . . . Searches Triggered . | . . . . . Construction Impeded . | . . . . . Haulers Reinforced . | . . . . . Active Scanning Responses . | . . . . . Cargo Convoy Interrupts . | . . . . . Stealth | -11 -10 -10 -10 -9 --------- Run | Yrd Mat Min Exi Min Distress Signals . | . . . . . Communications Jammed . | . . . . . Distress Signals . | . . . . . Times Spotted 30 | . 17 . . 13 Peak Tracking Total 10 | . 3 . . 10 Tactical Retreats 1 | . 1 . . . Traps | -11 -10 -10 -10 -9 ------- Run | Yrd Mat Min Exi Min Traps Triggered 2 | . 2 . . . Indirectly . | . . . . . Trap Hack Attempts . | . . . . . Triggered . | . . . . . Disarmed . | . . . . . Reprogrammed . | . . . . . Reused . | . . . . . Traps Extracted . | . . . . . Installed . | . . . . . Triggered . | . . . . . Machines | -11 -10 -10 -10 -9 ---------- Run | Yrd Mat Min Exi Min Machines Disabled . | . . . . . Max in Single Turn . | . . . . . Machines Repaired . | . . . . . Machines Dismantled . | . . . . . Machines Sabotaged . | . . . . . Overloaded Fab Kills . | . . . . . Hacking | -11 -10 -10 -10 -9 --------- Run | Yrd Mat Min Exi Min Machines Accessed 1 | . . . 1 . Terminals . | . . . . . Fabricators . | . . . . . Repair Stations . | . . . . . Recycling Units . | . . . . . Scanalyzers . | . . . . . Garrison Access . | . . . . . Total Hacks 1 | . . . 1 . Successful 1 | . . . 1 . Failed . | . . . . . Catastrophic . | . . . . . Database Lockouts . | . . . . . Manual 1 | . . . 1 . Terminals . | . . . . . Fabricators . | . . . . . Repair Stations . | . . . . . Recycling Units . | . . . . . Scanalyzers . | . . . . . Garrison Access . | . . . . . Terminal Hacks 1 | . . . 1 . Derelict Proto ID Bank 1 | . . . 1 . Fabricator Hacks . | . . . . . Repair Station Hacks . | . . . . . Recycling Unit Hacks . | . . . . . Scanalyzer . | . . . . . Garrison Access Hacks . | . . . . . Unauthorized Hacks . | . . . . . Terminals . | . . . . . Fabricators . | . . . . . Repair Stations . | . . . . . Recycling Units . | . . . . . Scanalyzers . | . . . . . Garrison Access . | . . . . . Data Cores Recovered . | . . . . . Used . | . . . . . Hacking Detections . | . . . . . Full Trace Events . | . . . . . Feedback Events . | . . . . . Feedback Blocked . | . . . . . Robot Schematics Acquired . | . . . . . Robots Built . | . . . . . Authchips . | . . . . . Time . | . . . . . Total Robot Build Rating . | . . . . . Part Schematics Acquired . | . . . . . Parts Built . | . . . . . Authchips . | . . . . . Time . | . . . . . Total Part Build Rating . | . . . . . Parts Repaired . | . . . . . Time . | . . . . . Parts Recycled . | . . . . . Recycled Matter . | . . . . . Retrieved Matter . | . . . . . Retrieved Components . | . . . . . Parts Scanalyzed . | . . . . . Part Schematics Acquired . | . . . . . Parts Damaged . | . . . . . Bothacking | -11 -10 -10 -10 -9 ------------ Run | Yrd Mat Min Exi Min Used RIF Installer . | . . . . . Robots Hacked . | . . . . . Non-combat . | . . . . . Combat . | . . . . . Robot Hacks Applied . | . . . . . Relay Couplers Released . | . . . . . Fabnet Peak Effective % . | . . . . . Robots Rewired . | . . . . . Allies Hacked . | . . . . . Hacks Repelled . | . . . . . Allies | -11 -10 -10 -10 -9 -------- Run | Yrd Mat Min Exi Min Total Allies . | . . . . . Largest Group . | . . . . . Highest-Rated Group . | . . . . . Highest-Rated Ally . | . . . . . Total Orders . | . . . . . Ally Attacks . | . . . . . Total Damage . | . . . . . Kills . | . . . . . Allies Corrupted . | . . . . . Allies Melted . | . . . . . Intel | -11 -10 -10 -10 -9 ------- Run | Yrd Mat Min Exi Min Robot Analysis Total . | . . . . . Derelict Logs Recovered . | . . . . . Drone Launches . | . . . . . Drone Recoveries . | . . . . . Exploration | -11 -10 -10 -10 -9 ------------- Run | Yrd Mat Min Exi Min Turns Passed 1669 | 77 890 41 574 87 Spaces Moved 695 | 41 393 18 238 5 Core 9 | 8 . . . 1 Treads 686 | 33 393 18 238 4 Legs . | . . . . . Wheels . | . . . . . Hover . | . . . . . Flight . | . . . . . Fastest Speed 50 | 50 160 240 240 50 Average Speed 196 | 143 173 240 240 202 Slowest Speed 240 | 160 240 240 240 240 Overloaded Moves . | . . . . . Propulsion Burnouts . | . . . . . Robots Hopped . | . . . . . Cave-ins Triggered . | . . . . . Exploration Rate (%) 29 | 4 65 8 60 10 Regions Visited 4 Branch Regions 3 Pre-discovered Areas 1 | . . . . 1 Known Exits Taken . | . . . . . Unknown Exits Taken 4 | 1 1 1 1 . Scrap Searched . | . . . . . Spaces Dug . | . . . . . Terrain Destroyed 20 | . 13 . . 7 Melee . | . . . . . Projectile 1 | . . . . 1 AOE 19 | . 13 . . 6 Terrain Rammed . | . . . . . Walls Destroyed . | . . . . . Machines Disabled . | . . . . . Actions | -11 -10 -10 -10 -9 --------- Run | Yrd Mat Min Exi Min Total 856 | 51 504 17 244 40 Wait 12 | . 12 . . . Move 691 | 40 392 17 237 5 Hop . | . . . . . Pick Up 30 | 2 24 . 3 1 Fast Attach 10 | 6 4 . . . Attach 9 | . 2 . . 7 Detach 1 | . 1 . . . Swap 7 | . 5 . . 2 Drop 13 | . 7 . 4 2 Fire 83 | 3 57 . . 23 Melee . | . . . . . Ram . | . . . . . Kick . | . . . . . Crush . | . . . . . Escape Stasis . | . . . . . Rewire . | . . . . . Trap . | . . . . . Miscellaneous . | . . . . . Route ------- -11/Scrapyard -10/Materials (discovered 2 exits: [*Mat] / [*Min]) -10/Mines -10/Exiles -9/Mines History --------- Turn | Location | Event 9 | -11/Scrapyard | Discovered new exit (range 15) 78 | -11/Scrapyard | Entered Materials 322 | -10/Materials | Build established: Mutant 490 | -10/Materials | Discovered new exit (range 16) 756 | -10/Materials | Discovered new exit (range 16) 968 | -10/Materials | Entered Mines 1000 | -10/Mines | Deemed a non-threat by the Exiles lab entrance 1000 | -10/Mines | Discovered new exit (range 5) 1009 | -10/Mines | Entered Exiles 1067 | -10/Exiles | Met 8R-AWN 1110 | -10/Exiles | Met EX-HEX 1182 | -10/Exiles | Met EX-BIN 1218 | -10/Exiles | Aligned with FarCom system 1221 | -10/Exiles | Given EX-Vault access code 1288 | -10/Exiles | Opened EX-Vault 1307 | -10/Exiles | Found Cloak of Protection 1358 | -10/Exiles | Warned to stay clear of 0b10 Research branches 1386 | -10/Exiles | Exiles lab attacked by MAIN.C 1564 | -10/Exiles | Discovered new exit (range 10) 1583 | -10/Exiles | Left Exiles lab with Cloak of Protection 1583 | -10/Exiles | Entered Mines 1584 | -9/Mines | Assembled infested the area 1584 | -9/Mines | Learned location of Storage (-8) 1589 | -9/Mines | Assisted by a Guerilla fighting off Assembled 1649 | -9/Mines | Destroyed 9 combat bots 1649 | -9/Mines | Core integrity fell below 50% 1661 | -9/Mines | Core integrity fell below 20% 1670 | -9/Mines | Destroyed by D-53 Grenadier with Mini Grenade Launcher Last Messages --------------- 01656_ The unstable cave ceiling collapses. 01656_ D-53 Grenadier knocked back. 01657_ K-01 Serf collects debris. 01658_ The unstable cave ceiling collapses. 01658_ Lgt. Treads destroyed. 01658_ Imp. Light Cannon destroyed. 01658_ Particle Gun destroyed. 01659_ The unstable cave ceiling collapses. 01662_ K-01 Serf collects debris. 01663_ K-01 Serf destroyed. 01663_ Destroyed Tractor Beam. 01664_ The unstable cave ceiling collapses. 01664_ Grenade Launcher destroyed. 01666_ Shotgun destroyed. 01666_ U-05 Engineer lays Concrete. 01668_ Dropped Hcp. Storage Unit. 01668_ U-05 Engineer lays Concrete. 01669_ Dropped Humpback. 01669_ U-05 Engineer lays Concrete. 01670_ Acquired Cloak of Protection. Map ----- +----------------------------------------------------+ | ?????????????????????????????????????? | | ?????????????????????????????????????? | | ?????????????????????????????????????? | | ?????????????????????????????????????? | | ?????????????????????????????????????? | | ?????????????????????????????????????? | | ?????????????????????????????????????? | | ?????????????????????????????????????? | | ?????????????????????????????????????? | | ?????????????????????????????????????? | | ??????????????????#########??????????? | | ?????????????????##########??????????? | | ????????????????####%!### ??????????? | | ????????????????###=!* ???????????? | | ????????????????## ???????????? | | ??????????????????? < ##????????? | | ????????????????? #####??????? | | ????????????????##### ####??????? | | ???????????????##### ##??????? | | ????????????###### ###??????? | | ??????????####### ###?????? | | ?????????##### ###?????? | | ?????????## ##?????? | | ?????????## d ![= ##?????? | | ?????????## d /!! ##?????? | | ?????????## # !@[ ##?????? | | ?????????## ! ##?????? | | ?????????## # ###?????? | | ?????????# # %* # #?????? | | ??????????? u## ### ###??????? | | ???????????? % ######??????? | | ???????????? ?"#####???????? | | ???????????? ? ####??????????????? | | ????????????? ??????????????? | | ?????????????? ### ????????????????? | | ???????????????######??????s??ss?????? | | ?????????????????####????????????????? | | ?????????????????????????????????????? | | ?????????????????????????????????????? | | ?????????????????????????????????????? | | ?????????????????????????????????????? | | ?????????????????????????????????????? | | ?????????????????????????????????????? | | ?????????????????????????????????????? | | ?????????????????????????????????????? | | ?????????????????????????????????????? | | ?????????????????????????????????????? | | ?????????????????????????????????????? | | ?????????????????????????????????????? | | ?????????????????????????????????????? | +----------------------------------------------------+ Best States ------------- Heat Dissipation 25 Energy Generation 10 Energy Capacity 125 Matter Stores 300 Matter Capacity 300 Sight Range 16 Terrain Scan Density 10 Evasion (%) 40 Recoil Reduction 2 Item Schematics ----------------- None Robot Schematics ------------------ None Fabricated ------------ Nothing Alien Tech Used ----------------- None Achievements -------------- None Challenges ------------ None Game ------ Seed MetaChromaticAccelerator Manual? 0 Play Time 00:12:13 Cumulative 168.2 hours Start 2024.05.11 @ 12:25:42 End 2024.05.11 @ 12:35:25 Sessions 1 Manual Loads 0 Difficulty Rogue Special Mode None Game No. 194 Rogue 194 Adventurer 0 Explorer 0 Win Type - Total 0 Types 0/0/0/0/0/0/0/0/0 Lore% 38 Gallery% 63 Achievement% 43 Wizard Run 0 Options --------- Layout 1 ASCII 0 Keyboard 1 Movement Vi Keybinds 0 Fullscreen 1 Font 24/Smallcaps Map View 50x35 Zoom Use 0% Tactical HUD 1 Map Filters NONE Filters NONE Steam 1 RUN: 6301872c-7ce9-45f8-8c96-a6e62d7da054